fUST/lending_fUST_20260111
["ID","MTS","AMOUNT","RATE_DAILY","PERIOD"]
[401315895,1768129848399,-151.0,0.00032917,2]
[401315896,1768129848410,-151.0,0.00032917,2]
[401315897,1768129848420,-151.0,0.00032917,2]
[401315898,1768129848430,-151.0,0.00032917,2]
[401315899,1768129848440,-151.0,0.00032917,2]
[401315900,1768129848450,-151.0,0.00032917,2]
[401315901,1768129848460,-151.0,0.00032917,2]
[401315902,1768129848470,-151.0,0.00032917,2]
[401315903,1768129848482,-151.0,0.00032917,2]
[401315904,1768129848493,-1112.0,0.00032999,2]
[401315905,1768129848503,-64142.26753541,0.00033,10]
[401315906,1768129848514,-174.0,0.00033014,57]
[401315907,1768129848525,-624.76107502,0.00033127,120]
[401315908,1768129848535,-588120.82157224,0.00033218,2]
[401315909,1768129848546,-151.0,0.00033218,7]
[401315910,1768129848557,-151.0,0.00033218,7]
[401315911,1768129848566,-151.0,0.00033218,31]
[401315912,1768129848576,-1045039.0068,0.0003322,30]
[401315913,1768129848585,-264.224,0.0003322,31]
[401315914,1768129848595,-264.224,0.0003322,31]
[401315915,1768129848606,-264.224,0.0003322,31]
[401315916,1768129848615,-264.224,0.0003322,31]
[401315917,1768129848625,-151.0,0.0003322,31]
[401315918,1768129848636,-156.82101,0.0003322,31]
[401315919,1768129848646,-151.0,0.0003322,31]
[401315920,1768129848656,-151.0,0.0003322,7]
[401315921,1768129848666,-151.0,0.0003322,7]
[401315922,1768129848757,-151.0,0.0003322,31]
[401315923,1768129848767,-151.0,0.0003322,31]
[401315924,1768129848777,-151.0,0.0003322,31]
[401315925,1768129848787,-151.0,0.0003322,31]
[401315926,1768129848798,-151.0,0.0003322,31]
[401315927,1768129848808,-163.811911,0.0003322,31]
[401315928,1768129848817,-175.972983,0.0003322,31]
[401315929,1768129848827,-159.196638,0.0003322,31]
[401315930,1768129848836,-151.0,0.0003322,31]
[401315931,1768129848846,-177.831998,0.0003322,7]
[401315932,1768129848856,-160.734397,0.0003322,31]
[401315933,1768129848865,-382.637039,0.0003322,31]
[401315934,1768129848875,-382.637039,0.0003322,31]
[401315935,1768129848886,-382.637039,0.0003322,31]
[401315936,1768129848895,-382.637039,0.0003322,31]
[401315937,1768129848904,-151.0,0.0003322,31]
[401315938,1768129848914,-157.400999,0.0003322,31]
[401315939,1768129848924,-192.928076,0.0003322,31]
[401315940,1768129848935,-151.0,0.0003322,31]
[401315941,1768129848945,-151.0,0.0003322,31]
[401315942,1768129848955,-1371.756404,0.0003322,31]
[401315943,1768129848966,-1371.756404,0.0003322,31]
[401315944,1768129848975,-151.0,0.0003322,31]
[401315945,1768129848984,-151.0,0.0003322,31]
[401315946,1768129848993,-1355.369352,0.0003322,31]
[401315947,1768129849002,-1355.369352,0.0003322,31]
[401315948,1768129849013,-160.161373,0.0003322,31]
[401315949,1768129849023,-1355.369352,0.0003322,31]
[401315950,1768129849032,-1355.369352,0.0003322,31]
[401315951,1768129849042,-239.620179,0.0003322,31]
[401315952,1768129849052,-151.0,0.0003322,31]
[401315953,1768129849062,-728.329358,0.0003322,31]
[401315954,1768129849071,-728.329358,0.0003322,31]
[401315955,1768129849081,-728.329358,0.0003322,31]
[401315956,1768129849090,-728.329358,0.0003322,31]
[401315957,1768129849100,-151.0,0.0003322,31]
[401315958,1768129849110,-151.0,0.0003322,31]
[401315959,1768129849119,-151.0,0.0003322,2]
[401315960,1768129849128,-152.205819,0.0003322,31]
[401315961,1768129849138,-151.0,0.0003322,31]
[401315962,1768129849148,-151.0,0.0003322,31]
[401315963,1768129849158,-151.0,0.0003322,31]
[401315964,1768129849168,-151.0,0.0003322,31]
[401315965,1768129849178,-151.0,0.0003322,31]
[401315966,1768129849188,-173.073557,0.0003322,31]
[401315967,1768129849198,-151.0,0.0003322,31]
[401315968,1768129849208,-151.0,0.0003322,31]
[401315969,1768129849217,-151.0,0.0003322,31]
[401315970,1768129849227,-173.073557,0.0003322,31]
[401315971,1768129849236,-151.0,0.0003322,31]
[401315972,1768129849245,-173.073557,0.0003322,31]
[401315973,1768129849255,-173.073557,0.0003322,31]
[401315974,1768129849264,-151.0,0.0003322,31]
[401315975,1768129849274,-151.0,0.0003322,31]
[401315976,1768129849284,-221.073797,0.0003322,31]
[401315977,1768129849294,-151.0,0.0003322,31]
[401315978,1768129849304,-151.0,0.0003322,31]
[401315979,1768129849314,-151.0,0.0003322,31]
[401315980,1768129849323,-151.0,0.0003322,31]
[401315981,1768129849333,-1112.0,0.00033298,2]
[401315982,1768129849342,-1112.0,0.00033299,2]
[401315983,1768129849353,-2378.23,0.000334,30]
[401315984,1768129849362,-468.6,0.00033548,6]
[401315985,1768129849371,-354.0,0.00033573,2]
[401315986,1768129849381,-801.82496169,0.00033611,2]
[401315987,1768129849390,-155.5739919,0.00033629,10]
[401315988,1768129849399,-210.0,0.00033699,5]
[401315989,1768129849409,-163.38,0.000337,10]
[401315990,1768129849418,-629.16420479,0.00033986,2]
[401315991,1768129849428,-2563.81814958,0.00034008,2]
[401315992,1768129849437,-800.0,0.00034048,2]
[401315993,1768129849447,-355.0,0.00034052,120]
[401315994,1768129849456,-339.7,0.00034129,60]
[401315995,1768129849466,-756.0,0.00034155,30]
[401315996,1768129849475,-547.0,0.00034155,30]
[401315997,1768129849485,-720.0,0.00034155,30]
[401315998,1768129849494,-339.7,0.00034229,60]
[401315999,1768129849504,-1087.80747027,0.00034293,2]
[401316000,1768129849514,-2563.81814958,0.00034311,2]
[401316001,1768129849523,-339.7265,0.00034329,60]
[401316002,1768129849533,-800.0,0.00034362,2]
[401316003,1768129849542,-304.60790915,0.00034391,2]
[401316004,1768129849552,-1218.43163659,0.00034391,2]
[401316005,1768129849562,-2741.47118234,0.00034391,2]
[401316006,1768129849572,-4873.72654637,0.00034391,2]
[401316007,1768129849581,-7615.19772871,0.00034391,2]
[401316008,1768129849591,-10965.88472934,0.00034391,2]
[401316009,1768129849600,-383.21128571,0.00034391,2]
[401316010,1768129849609,-1532.84514283,0.00034391,2]
[401316011,1768129849619,-3448.90157136,0.00034391,2]
[401316012,1768129849628,-6131.38057131,0.00034391,2]
[401316013,1768129849637,-9580.28214268,0.00034391,2]
[401316014,1768129849646,-14852.23,0.000345,14]
[401316015,1768129849657,-270.0,0.00034521,5]
[401316016,1768129849667,-5000.0,0.00034536,3]
[401316017,1768129849677,-1174.828852,0.00034543,2]
[401316018,1768129849686,-7808.0267045,0.00034546,2]
[401316019,1768129849695,-1515.2018289,0.00034546,2]
[401316020,1768129849704,-32426.8103816,0.00034546,2]
[401316021,1768129849714,-1317.0748296,0.00034546,2]
[401316022,1768129849724,-800.0,0.00034554,2]
[401316023,1768129849736,-932.46362,0.000346,16]
[401316024,1768129849746,-6408.12891707,0.00034632,7]
[401316025,1768129849755,-6950.04209584,0.00034632,7]
[401316026,1768129849765,-434.81285855,0.00034632,7]
[401316027,1768129849777,-708.45783912,0.00034632,7]
[401316028,1768129849787,-1739.2514342,0.00034632,7]
[401316029,1768129849797,-1095.40809829,0.00034649,7]
[401316030,1768129849808,-151.0,0.00034649,7]
[401316031,1768129849818,-151.0,0.00034649,7]
[401316032,1768129849827,-445.202766,0.00034649,7]
[401316033,1768129849837,-151.0,0.00034649,7]
[401316034,1768129849847,-250.0,0.00034649,7]
[401316035,1768129849857,-461.67526834,0.00034649,7]
[401316036,1768129849866,-250.0,0.00034649,7]
[401316037,1768129849876,-250.15738416,0.00034649,7]
[401316038,1768129849885,-478.75725327,0.00034649,7]
[401316039,1768129849895,-153.90472729,0.00034649,7]
[401316040,1768129849904,-151.0,0.00034649,7]
[401316041,1768129849913,-496.47127164,0.00034649,7]
[401316042,1768129849923,-250.0,0.00034649,7]
[401316043,1768129849932,-250.0,0.00034649,7]
[401316044,1768129849942,-151.0,0.00034649,7]
[401316045,1768129849951,-514.84070869,0.00034649,7]
[401316046,1768129849961,-533.88981491,0.00034649,7]
[401316047,1768129849971,-151.0,0.00034649,7]
[401316048,1768129849980,-562.55157284,0.00034649,7]
[401316049,1768129849989,-151.0,0.00034649,7]
[401316050,1768129849999,-151.0,0.00034649,7]
[401316051,1768129850008,-151.0,0.00034649,7]
[401316052,1768129850018,-151.0,0.00034649,7]
[401316053,1768129850027,-151.0,0.00034649,7]
[401316054,1768129850037,-151.0,0.00034649,7]
[401316055,1768129850046,-151.0,0.00034649,7]
[401316056,1768129850055,-151.0,0.00034649,7]
[401316057,1768129850065,-151.0,0.00034649,7]
[401316058,1768129850074,-151.0,0.00034649,7]
[401316059,1768129850083,-151.0,0.00034649,7]
[401316060,1768129850092,-151.0,0.00034649,7]
[401316061,1768129850101,-151.0,0.00034649,7]
[401316062,1768129850110,-151.0,0.00034649,7]
[401316063,1768129850119,-151.0,0.00034649,7]
[401316064,1768129850129,-151.0,0.00034649,7]
[401316065,1768129850138,-154.07167593,0.00034649,7]
[401316066,1768129850148,-162.380719,0.00034649,7]
[401316067,1768129850157,-223.13477496,0.00034649,7]
[401316068,1768129850167,-2150.738,0.00034649,7]
[401316069,1768129850176,-250.0,0.00034649,7]
[401316070,1768129850186,-271.40103972,0.00034649,7]
[401316071,1768129850195,-151.0,0.0003465,7]
[401316072,1768129850205,-151.0,0.0003465,7]
[401316073,1768129850214,-151.76651056,0.0003465,7]
[401316074,1768129850224,-354974.04733654,0.0003465,2]
[401316075,1768129850320,-22161.61323043,0.0003465,2]
[401316076,1768129850390,-758.99824618,9.108e-05,2]
[401316077,1768129850454,-364.1223916,9.108e-05,2]
[401316078,1768129850573,-475.87788346,9.108e-05,2]
[401316079,1768129927575,-175.472,8.926e-05,2]
[401316080,1768129994426,2304.98,0.0003013,120]
[401316081,1768130203379,155.0,5.98e-05,2]
[401316084,1768130403938,228.77,5e-05,2]
[401316085,1768130404394,228.77,5.5e-05,2]
[401316086,1768130404967,228.77,6e-05,2]
[401316087,1768130405622,228.77,6.5e-05,2]
[401316088,1768130406179,228.77,7.1e-05,2]
[401316089,1768130406668,228.77,7.6e-05,2]
[401316090,1768130407177,228.77,8.1e-05,2]
[401316091,1768130407693,228.77,8.6e-05,2]
[401316092,1768130433242,228.65,5e-05,2]
[401316093,1768130517975,-175.473,8.926e-05,2]
[401316094,1768130536731,1000.7,0.00030137,120]
[401316097,1768130879020,-731.7519379,9.008e-05,2]
[401316098,1768130879053,-10000.01,9.008e-05,2]
[401316099,1768130879066,-10000.01,9.008e-05,2]
[401316100,1768130879157,-10000.01,9.008e-05,2]
[401316101,1768130879271,-10000.01,9.008e-05,2]
[401316102,1768130890495,-300.0,9.007e-05,2]
[401316103,1768130890527,-9400.01,9.008e-05,2]
[401316104,1768130890661,-10000.01,9.008e-05,2]
[401316108,1768130924703,-10000.01,9.008e-05,2]
[401316115,1768130952922,203.76,5.923e-05,2]
[401316116,1768130953312,407.51,6.205e-05,2]
[401316117,1768130953704,611.27,6.487e-05,2]
[401316118,1768130954098,815.03,6.769e-05,2]
[401316119,1768130954484,1018.78,7.051e-05,2]
[401316120,1768130954877,1222.54,7.333e-05,2]
[401316121,1768130955298,1426.3,7.615e-05,2]
[401316122,1768130955688,1630.05,7.897e-05,2]
[401316123,1768130956085,1833.81,8.179e-05,2]
[401316124,1768130956472,830.96,8.461e-05,2]
[401316125,1768130956495,1206.61,8.461e-05,2]
[401316128,1768130983162,300.0,8.079e-05,2]
[401316129,1768131004053,153.67,5e-05,2]
[401316130,1768131004689,153.67,6e-05,2]
[401316131,1768131005261,153.67,6.9e-05,2]
[401316132,1768131005859,153.67,7.9e-05,2]
[401316133,1768131020417,153.62,5e-05,2]
[401316134,1768131021704,800.0,0.00030137,120]
[401316135,1768131029614,183.38,6.215e-05,2]
[401316136,1768131030008,244.51,6.485e-05,2]
[401316137,1768131030397,305.64,6.755e-05,2]
[401316138,1768131030802,366.76,7.025e-05,2]
[401316139,1768131031200,427.89,7.295e-05,2]
[401316140,1768131031596,489.02,7.566e-05,2]
[401316167,1768131032003,550.14,7.836e-05,2]
[401316169,1768131032027,-153.67,8.9e-05,2]
[401316170,1768131032036,-300.0,9.006e-05,2]
[401316171,1768131032046,-546.0,9.006e-05,2]
[401316172,1768131032055,-158.32567067,9.007e-05,2]
[401316173,1768131032083,-341.67432933,9.007e-05,2]
[401316174,1768131032092,-500.0,9.007e-05,2]
[401316175,1768131032103,-500.0,9.007e-05,2]
[401316176,1768131032112,-132.60702145,9.007e-05,2]
[401316177,1768131032123,-367.39297855,9.007e-05,2]
[401316178,1768131032132,-350.08014633,9.007e-05,2]
[401316179,1768131032143,-149.91985367,9.007e-05,2]
[401316180,1768131032152,-500.0,9.007e-05,2]
[401316181,1768131032161,-500.0,9.007e-05,2]
[401316182,1768131032170,-500.0,9.007e-05,2]
[401316183,1768131032180,-500.0,9.007e-05,2]
[401316184,1768131032189,-500.0,9.007e-05,2]
[401316185,1768131032199,-500.0,9.007e-05,2]
[401316186,1768131032211,-500.0,9.007e-05,2]
[401316187,1768131032221,-500.0,9.007e-05,2]
[401316188,1768131032230,-500.0,9.007e-05,2]
[401316189,1768131032239,-500.0,9.007e-05,2]
[401316190,1768131032248,-500.0,9.007e-05,2]
[401316191,1768131032258,-500.0,9.007e-05,2]
[401316192,1768131032267,-500.0,9.007e-05,2]
[401316193,1768131032276,-500.0,9.007e-05,2]
[401316194,1768131032286,-500.0,9.007e-05,2]
[401316195,1768131032295,-500.0,9.007e-05,2]
[401316196,1768131032305,-500.0,9.007e-05,2]
[401316197,1768131032315,-500.0,9.007e-05,2]
[401316198,1768131032324,-500.0,9.007e-05,2]
[401316199,1768131032333,-500.0,9.007e-05,2]
[401316200,1768131032343,-500.0,9.007e-05,2]
[401316202,1768131032352,-500.0,9.007e-05,2]
[401316204,1768131032361,-500.0,9.007e-05,2]
[401316206,1768131032370,-57.52574079,9.007e-05,2]
[401316210,1768131032416,611.27,8.106e-05,2]
[401316224,1768131038104,-442.47425921,9.007e-05,2]
[401316226,1768131038114,-500.0,9.007e-05,2]
[401316228,1768131038124,-500.0,9.007e-05,2]
[401316230,1768131038134,-500.0,9.007e-05,2]
[401316232,1768131038144,-500.0,9.007e-05,2]
[401316234,1768131038154,-500.0,9.007e-05,2]
[401316236,1768131038163,-500.0,9.007e-05,2]
[401316238,1768131038173,-331.16409229,9.007e-05,2]
[401316240,1768131038182,-500.0,9.007e-05,2]
[401316242,1768131038191,-500.0,9.007e-05,2]
[401316244,1768131038202,-500.0,9.007e-05,2]
[401316247,1768131038216,-500.0,9.007e-05,2]
[401316249,1768131038225,-500.0,9.007e-05,2]
[401316251,1768131038235,-500.0,9.007e-05,2]
[401316253,1768131038244,-500.0,9.007e-05,2]
[401316255,1768131038253,-500.0,9.007e-05,2]
[401316257,1768131038262,-500.0,9.007e-05,2]
[401316259,1768131038272,-500.0,9.007e-05,2]
[401316261,1768131038282,-500.0,9.007e-05,2]
[401316263,1768131038292,-444.19050733,9.007e-05,2]
[401316265,1768131038302,-929868.1780621,9.008e-05,2]
[401316267,1768131038311,-202.69421552,9.054e-05,2]
[401316269,1768131038320,-228.80134121,9.054e-05,2]
[401316271,1768131038330,-228.77,9.1e-05,2]
[401316273,1768131038341,-2870.56440792,9.1e-05,2]
[401316275,1768131038351,-50000.0,9.107e-05,2]
[401316277,1768131038361,-500.0,9.107e-05,2]
[401316279,1768131038371,-159.39734428,9.107e-05,2]
[401316281,1768131038381,-500.0,9.107e-05,2]
[401316283,1768131038391,-500.0,9.107e-05,2]
[401316285,1768131038401,-500.0,9.107e-05,2]
[401316287,1768131038411,-500.0,9.107e-05,2]
[401316289,1768131038421,-205.07644982,9.107e-05,2]
[401316291,1768131038431,-500.0,9.281e-05,2]
[401316293,1768131038440,-300.0,9.289e-05,2]
[401316295,1768131038450,-300.0,9.289e-05,2]
[401316297,1768131038460,-300.0,9.289e-05,2]
[401316299,1768131038470,-300.0,9.289e-05,2]
[401316301,1768131038480,-300.0,9.289e-05,2]
[401316303,1768131038489,-300.0,9.289e-05,2]
[401316305,1768131038499,-300.0,9.289e-05,2]
[401316307,1768131038509,-300.0,9.289e-05,2]
[401316309,1768131038518,-300.0,9.289e-05,2]
[401316311,1768131038528,-300.0,9.289e-05,2]
[401316313,1768131038537,-300.0,9.289e-05,2]
[401316315,1768131038547,-300.0,9.289e-05,2]
[401316317,1768131038556,-300.0,9.289e-05,2]
[401316319,1768131038566,-300.0,9.289e-05,2]
[401316321,1768131038576,-300.0,9.289e-05,2]
[401316323,1768131038586,-600.0,9.289e-05,2]
[401316325,1768131038595,-500.0,9.555e-05,2]
[401316327,1768131038604,-228.77,9.6e-05,2]
[401316329,1768131038613,-153.67,9.8e-05,2]
[401316331,1768131038622,-500.0,9.829e-05,2]
[401316333,1768131038631,-420.0,9.907e-05,2]
[401316335,1768131038640,-727.78714077,0.0001,2]
[401316336,1768131038649,-228.77,0.000101,2]
[401316338,1768131038658,-193.8907019,0.000101,2]
[401316340,1768131038667,-500.0,0.00010103,2]
[401316341,1768131038677,-720.0,0.00010218,2]
[401316342,1768131038686,-500.0,0.00010377,2]
[401316343,1768131038696,-228.77,0.000106,2]
[401316344,1768131038705,-500.0,0.00010651,2]
[401316345,1768131038714,-153.67,0.000108,2]
[401316346,1768131038724,-587.0,0.00010897,2]
[401316347,1768131038734,-500.0,0.00010925,2]
[401316348,1768131038745,-999.0,0.00010959,2]
[401316349,1768131038755,-151.0,0.00011,2]
[401316350,1768131038764,-153.0,0.00011,2]
[401316351,1768131038773,-617.9975553,0.00011,2]
[401316352,1768131038783,-205.0992868,0.00011,2]
[401316353,1768131038792,-153.0,0.00011,2]
[401316354,1768131038802,-153.0,0.00011,2]
[401316355,1768131038812,-153.0,0.00011,2]
[401316356,1768131038821,-239.17917432,0.00011054,2]
[401316357,1768131038831,-500.0,0.00011199,2]
[401316358,1768131038840,-228.77,0.000112,2]
[401316359,1768131038850,-864.0,0.0001124,2]
[401316360,1768131038860,-500.0,0.00011473,2]
[401316361,1768131038869,-228.77,0.000117,2]
[401316362,1768131038879,-448.52259365,0.00011747,2]
[401316363,1768131038888,-153.67,0.000118,2]
[401316364,1768131038897,-250.0,0.000119,2]
[401316365,1768131038906,-823.0,0.00011987,2]
[401316366,1768131038916,-228.77,0.000122,2]
[401316367,1768131038925,-1271.95,0.00012329,2]
[401316368,1768131038935,-1220.64,0.00012329,2]
[401316369,1768131038944,-1017.2,0.00012329,2]
[401316370,1768131038953,-847.67,0.00012329,2]
[401316371,1768131038962,-706.39,0.00012329,2]
[401316372,1768131038971,-588.66,0.00012329,2]
[401316373,1768131038981,-490.55,0.00012329,2]
[401316374,1768131038990,-408.79,0.00012329,2]
[401316375,1768131038999,-340.66,0.00012329,2]
[401316376,1768131039009,-283.88,0.00012329,2]
[401316377,1768131039018,-236.57,0.00012329,2]
[401316378,1768131039027,-197.14,0.00012329,2]
[401316379,1768131039036,-164.28,0.00012329,2]
[401316380,1768131039045,-821.45,0.00012329,2]
[401316381,1768131039055,-414.12,0.00012329,2]
[401316382,1768131039065,-923.29736034,0.00012329,2]
[401316383,1768131039074,-923.29736034,0.00012329,2]
[401316384,1768131039083,-923.29736034,0.00012329,2]
[401316385,1768131039093,-923.29736034,0.00012329,2]
[401316386,1768131039103,-923.29736034,0.00012329,2]
[401316387,1768131039112,-923.29736034,0.00012329,2]
[401316388,1768131039121,-923.29736034,0.00012329,2]
[401316389,1768131039131,-923.29736034,0.00012329,2]
[401316390,1768131039141,-923.29736034,0.00012329,2]
[401316391,1768131039151,-923.29736034,0.00012329,2]
[401316392,1768131039161,-923.29736034,0.00012329,2]
[401316393,1768131039170,-923.29736034,0.00012329,2]
[401316394,1768131039180,-923.29736034,0.00012329,2]
[401316395,1768131039190,-923.29736034,0.00012329,2]
[401316396,1768131039199,-923.29736034,0.00012329,2]
[401316397,1768131039211,-923.29736034,0.00012329,2]
[401316398,1768131039221,-923.29736034,0.00012329,2]
[401316399,1768131039230,-923.29736034,0.00012329,2]
[401316400,1768131039241,-923.29736034,0.00012329,2]
[401316401,1768131039251,-923.29736034,0.00012329,2]
[401316402,1768131039261,-923.29736034,0.00012329,2]
[401316403,1768131039270,-923.29736034,0.00012329,2]
[401316404,1768131039282,-923.29736034,0.00012329,2]
[401316405,1768131039292,-923.29736034,0.00012329,2]
[401316406,1768131039303,-923.29736034,0.00012329,2]
[401316407,1768131039312,-923.29736034,0.00012329,2]
[401316408,1768131039322,-923.29736034,0.00012329,2]
[401316409,1768131039331,-923.29736034,0.00012329,2]
[401316410,1768131039341,-923.29736034,0.00012329,2]
[401316411,1768131039351,-923.29736034,0.00012329,2]
[401316412,1768131039361,-923.29736034,0.00012329,2]
[401316413,1768131039370,-923.29736034,0.00012329,2]
[401316414,1768131039380,-923.29736034,0.00012329,2]
[401316415,1768131039389,-923.29736034,0.00012329,2]
[401316416,1768131039398,-923.29736034,0.00012329,2]
[401316417,1768131039408,-923.29736034,0.00012329,2]
[401316418,1768131039418,-923.29736034,0.00012329,2]
[401316419,1768131039427,-923.29736034,0.00012329,2]
[401316420,1768131039436,-923.29736034,0.00012329,2]
[401316421,1768131039445,-923.29736034,0.00012329,2]
[401316422,1768131039455,-923.29736034,0.00012329,2]
[401316423,1768131039464,-923.29736034,0.00012329,2]
[401316424,1768131039472,-923.29736034,0.00012329,2]
[401316425,1768131039481,-923.29736034,0.00012329,2]
[401316426,1768131039491,-923.29736034,0.00012329,2]
[401316427,1768131039501,-923.29736034,0.00012329,2]
[401316428,1768131039510,-923.29736034,0.00012329,2]
[401316429,1768131039519,-923.29736034,0.00012329,2]
[401316430,1768131039528,-923.29736034,0.00012329,2]
[401316431,1768131039538,-923.29736034,0.00012329,2]
[401316432,1768131039548,-923.29736034,0.00012329,2]
[401316433,1768131039557,-923.29736034,0.00012329,2]
[401316434,1768131039567,-923.29736034,0.00012329,2]
[401316435,1768131039576,-923.29736034,0.00012329,2]
[401316436,1768131039586,-923.29736034,0.00012329,2]
[401316437,1768131039595,-923.29736034,0.00012329,2]
[401316438,1768131039604,-923.29736034,0.00012329,2]
[401316439,1768131039614,-923.29736034,0.00012329,2]
[401316440,1768131039623,-923.29736034,0.00012329,2]
[401316441,1768131039632,-923.29736034,0.00012329,2]
[401316442,1768131039641,-923.29736034,0.00012329,2]
[401316443,1768131039651,-923.29736034,0.00012329,2]
[401316444,1768131039660,-923.29736034,0.00012329,2]
[401316445,1768131039669,-923.29736034,0.00012329,2]
[401316446,1768131039678,-923.29736034,0.00012329,2]
[401316447,1768131039688,-1303.95062466,0.00012329,2]
[401316448,1768131039697,-1303.95062466,0.00012329,2]
[401316449,1768131039706,-1303.95062466,0.00012329,2]
[401316450,1768131039717,-1303.95062466,0.00012329,2]
[401316451,1768131039726,-1303.95062466,0.00012329,2]
[401316452,1768131039736,-1303.95062466,0.00012329,2]
[401316453,1768131039745,-1303.95062466,0.00012329,2]
[401316454,1768131039754,-1303.95062466,0.00012329,2]
[401316455,1768131039763,-1303.95062466,0.00012329,2]
[401316456,1768131039773,-1303.95062466,0.00012329,2]
[401316457,1768131039782,-1303.95062466,0.00012329,2]
[401316458,1768131039791,-1303.95062466,0.00012329,2]
[401316459,1768131039800,-1303.95062466,0.00012329,2]
[401316460,1768131039810,-1303.95062466,0.00012329,2]
[401316461,1768131039819,-1303.95062466,0.00012329,2]
[401316462,1768131039828,-1303.95062466,0.00012329,2]
[401316463,1768131039838,-1303.95062466,0.00012329,2]
[401316464,1768131039848,-1303.95062466,0.00012329,2]
[401316465,1768131039867,-1303.95062466,0.00012329,2]
[401316466,1768131039876,-1303.95062466,0.00012329,2]
[401316468,1768131039885,-1303.95062466,0.00012329,2]
[401316471,1768131039894,-1303.95062466,0.00012329,2]
[401316473,1768131039903,-1303.95062466,0.00012329,2]
[401316475,1768131039912,-1303.95062466,0.00012329,2]
[401316477,1768131039922,-1000.0,0.00012364,2]
[401316479,1768131039931,-3521.30514597,0.000125,2]
[401316481,1768131039940,-414.12,0.00012603,2]
[401316483,1768131039950,-228.77,0.000127,2]
[401316485,1768131039959,-153.67,0.000127,2]
[401316487,1768131039968,-414.12,0.00012877,2]
[401316489,1768131039977,-18916.4299268,0.000129,2]
[401316491,1768131039986,-18916.42992676,0.00012916,2]
[401316493,1768131039995,-275.66413311,0.00013054,2]
[401316495,1768131040005,-414.12,0.00013151,2]
[401316497,1768131040015,-1152.0,0.00013186,2]
[401316499,1768131040024,-228.77,0.000132,2]
[401316501,1768131040033,-500.0,0.00013273,2]
[401316503,1768131040043,-500.0,0.00013273,2]
[401316505,1768131040052,-500.0,0.00013273,2]
[401316507,1768131040061,-500.0,0.00013273,2]
[401316509,1768131040070,-500.0,0.00013273,2]
[401316511,1768131040079,-500.0,0.00013273,2]
[401316513,1768131040088,-500.0,0.00013273,2]
[401316515,1768131040097,-500.0,0.00013273,2]
[401316517,1768131040106,-500.0,0.00013273,2]
[401316519,1768131040115,-500.0,0.00013273,2]
[401316521,1768131040124,-500.0,0.00013273,2]
[401316523,1768131040133,-501.02698451,0.00013273,2]
[401316524,1768131040142,-500.0,0.00013273,2]
[401316526,1768131040151,-500.0,0.00013273,2]
[401316528,1768131040160,-500.0,0.00013273,2]
[401316530,1768131040169,-500.0,0.00013273,2]
[401316532,1768131040178,-500.0,0.00013273,2]
[401316534,1768131040187,-500.0,0.00013273,2]
[401316536,1768131040196,-500.0,0.00013273,2]
[401316538,1768131040206,-500.0,0.00013273,2]
[401316540,1768131040217,-500.0,0.00013273,2]
[401316542,1768131040226,-500.0,0.00013273,2]
[401316544,1768131040235,-500.0,0.00013273,2]
[401316546,1768131040244,-500.0,0.00013273,2]
[401316548,1768131040253,-500.0,0.00013273,2]
[401316550,1768131040262,-500.0,0.00013273,2]
[401316552,1768131040271,-500.0,0.00013273,2]
[401316554,1768131040280,-500.0,0.00013273,2]
[401316556,1768131040289,-500.0,0.00013273,2]
[401316558,1768131040298,-500.0,0.00013273,2]
[401316560,1768131040308,-500.0,0.00013273,2]